Cogmind - Beta 12 @@@ ROGUE MODE // 2023.03.10 @ 17:23:02 Player: Red Box Result: Self-destructed Performance ------------- Evolutions (1) 500 Regions Visited (3) 600 Robots Destroyed (25) 125 Value Destroyed (521) 521 Prototype IDs (3) 60 Alien Tech Used (0) 0 Bonus (0) 0 TOTAL SCORE: 1806 Bonus ------- None Cogmind --------- Core Integrity 204/400 Matter 300/300 Energy 72/100 System Corruption 0% Temperature Cool (23) Movement Core (500) Ox9 Location -9/Materials Parts ------- > --- POWER (1) -------- (None) > --- PROPULSION (2) --- (None) > --- UTILITY (4) ------ Improved Heat Sink Large Storage Unit Targeting Computer Light Armor Plating > --- WEAPON (2) ------- Medium Laser Spread Laser > --- INVENTORY (15) --- Light Treads Wheel High-capacity Storage Unit Medium Armor Plating Heavy EM Pulse Gun Medium Laser Medium Laser Beam Rifle Improved Light Cannon Improved Light Cannon Improved Light Cannon Improved Light Cannon Grenade Launcher Datajack Mining Laser Peak State ------------ > --- POWER ------------ Light Ion Engine > --- PROPULSION ------- Wheel Wheel > --- UTILITY ---------- Improved Heat Sink Large Storage Unit Targeting Computer Light Armor Plating > --- WEAPON ----------- Medium Laser Spread Laser > --- INVENTORY -------- Light Treads Wheel High-capacity Storage Unit Light Armor Plating Medium Armor Plating Heavy EM Pulse Gun Medium Laser Medium Laser Beam Rifle Improved Light Cannon Improved Light Cannon Improved Light Cannon Grenade Launcher Datajack Mining Laser [Rating: 14] Favorites ----------- Power Light Ion Engine Engine Light Ion Engine Propulsion Wheel Leg Aluminum Leg Wheel Wheel Utility Improved Heat Sink Device Improved Heat Sink Storage Large Storage Unit Processor Targeting Computer Protection Core Shielding Weapon Medium Laser Energy Gun Medium Laser Ballistic Gun Assault Rifle Special Weapon Mining Laser Build | -11 -10 -10 -9 ------- Run | Jun Mat Min Mat Slots Evolved 2 | . . . 2 Power . | . . . . Propulsion . | . . . . Utility 2 | . . . 2 Weapon . | . . . . Parts Attached 33 | 9 8 . 16 Power 2 | 1 . . 1 Engine 2 | 1 . . 1 Core . | . . . . Reactor . | . . . . Propulsion 6 | 4 1 . 1 Treads . | . . . . Leg 2 | 2 . . . Wheel 4 | 2 1 . 1 Hover . | . . . . Flight . | . . . . Utility 12 | 2 3 . 7 Device 4 | 1 1 . 2 Storage 3 | 1 2 . . Processor 2 | . . . 2 Hackware . | . . . . Protection 3 | . . . 3 Artifact . | . . . . Weapon 13 | 2 4 . 7 Energy Gun 8 | . 3 . 5 Energy Cannon . | . . . . Ballistic Gun 2 | 2 . . . Ballistic Cannon . | . . . . Launcher . | . . . . Special Weapon 3 | . 1 . 2 Impact Weapon . | . . . . Slashing Weapon . | . . . . Piercing Weapon . | . . . . Special Melee Weapon . | . . . . Unidentified Prototypes . | . . . . Parts Lost 10 | . 1 . 9 Power 2 | . . . 2 Propulsion 4 | . 1 . 3 Utility 2 | . . . 2 Weapon 2 | . . . 2 Highest Loss Streak 3 | . 1 . 3 To Critical Strikes . | . . . . Average Slot Usage (%) 95 | . 94 100 95 Engine 11 | . 14 14 7 Wheel 23 | . 23 28 21 Device 12 | . 14 14 10 Storage 12 | . 14 14 11 Processor 4 | . . . 13 Protection 3 | . . . 8 Energy Gun 23 | . 23 28 21 Ballistic Gun 1 | . 4 . . Naked Turns . | . . . . Heaviest Build 32 | 12 28 28 32 Greatest Support 26 | 26 26 20 20 Greatest Overweight (x) 3 | 1 1 1 3 Average Overweight (x) . | . . 1 1 Largest Inventory Capacity 15 | 8 15 15 15 Average Capacity 12 | 7 10 15 15 Most Carried 15 | 8 14 15 15 Average Carried 11 | 4 8 14 14 Final Capacity 15 | 8 15 15 15 Final Carried 15 | 7 14 15 15 Class Distribution -------------------- 98% | Mutant Dominant Class ---------------- Mutant | -10/Materials Mutant | -10/Mines Mutant | -9/Materials Resources | -11 -10 -10 -9 ----------- Run | Jun Mat Min Mat Matter Collected 543 | 299 114 . 130 Remotely . | . . . . Salvage Created 646 | 61 194 . 391 Parts 54 | 6 16 . 32 Haulers Intercepted . | . . . . Recyclers Shooed . | . . . . Parts Field Recycled . | . . . . Retrieved Matter . | . . . . Parts Self-Destructed . | . . . . Prevented . | . . . . Kills | -11 -10 -10 -9 ------- Run | Jun Mat Min Mat Combat Hostiles Destroyed 20 | . 6 . 14 Guns 19 | . 6 . 13 Classes Destroyed 6 | 2 3 . 1 Tunneler 1 | 1 . . . Recycler 1 | 1 . . . Watcher 3 | . 1 . 2 Swarmer 12 | . 3 . 9 Grunt 3 | . 3 . . Sentry 5 | . . . 5 Best Kill Streak 6 | 2 3 . 6 Combat Bots Only 6 | . 3 . 6 Max Kills in Single Turn 2 | 1 1 . 2 Gunslinging 1 | . . . 1 Exploded . | . . . . Melee . | . . . . Uniques/NPCs Destroyed . | . . . . Combat | -11 -10 -10 -9 -------- Run | Jun Mat Min Mat Damage Taken 882 | . 186 . 696 Core 237 | . 41 . 196 Absorbed by Shields . | . . . . Redirected to Shielding 35 | . . . 35 Core Remaining (%) 91 | 100 . 83 . Volleys Fired 85 | 9 28 . 48 Largest 2 | 2 2 . 2 Hottest 115 | 40 100 . 115 Shots Fired 158 | 18 55 . 85 Gun 152 | 18 54 . 80 Cannon . | . . . . Launcher . | . . . . Special 6 | . 1 . 5 Kinetic 24 | 18 6 . . Thermal 134 | . 49 . 85 Explosive . | . . . . Electromagnetic . | . . . . Robot Hit Streak 21 | 9 8 . 21 Robot Miss Streak 4 | 1 4 . 3 Penetration Max . | . . . . Secondary Targets 4 | . 1 . 3 Max Gunslinging Chain 1 | . 1 . 1 Shots Hit Robots 103 | 13 32 . 58 Core Hits 49 | 5 13 . 31 Critical Kills . | . . . . Critical Parts Destroyed . | . . . . Critical Strikes 5 | . 2 . 3 Burn 5 | . 2 . 3 Melee Attacks . | . . . . Impact . | . . . . Slashing . | . . . . Piercing . | . . . . Sneak Attacks . | . . . . Combat Hostiles . | . . . . Follow-up Attacks . | . . . . Damage Inflicted 1330 | 154 414 . 762 Guns 1330 | 154 414 . 762 Cannons . | . . . . Explosions . | . . . . Melee . | . . . . Ramming . | . . . . Kinetic 198 | 154 44 . . Thermal 1132 | . 370 . 762 Explosive . | . . . . Electromagnetic . | . . . . Impact . | . . . . Slashing . | . . . . Piercing . | . . . . Highest Corruption . | . . . . Average Corruption . | . . . . Corruption Purged . | . . . . Corruption Blocked . | . . . . Overload Shots . | . . . . Overflow Damage . | . . . . Projectiles . | . . . . Explosions . | . . . . Melee . | . . . . Knockbacks . | . . . . Impact . | . . . . Kinetic . | . . . . Secondary . | . . . . Self-Inflicted Damage . | . . . . Shots . | . . . . Rammed . | . . . . Targets Rammed . | . . . . Kicked . | . . . . Crushed . | . . . . Highest Temperature 192 | . 192 . 60 Average Temperature 33 | . 55 . 19 Received Heat Transfer 189 | . 81 . 108 Siege Activations . | . . . . Robots Corrupted . | . . . . Combat Hostiles . | . . . . Parts Fried . | . . . . Impact Corruptions . | . . . . Robots Melted 1 | . . . 1 Combat Hostiles 1 | . . . 1 Parts Melted 10 | . 2 . 8 Heat Transferred 3377 | . 1221 . 2156 Parts Sabotaged . | . . . . Parts Stolen . | . . . . Parts Stripped . | . . . . Power Chain Reactions . | . . . . Missiles Intercepted . | . . . . Alert | -11 -10 -10 -9 ------- Run | Jun Mat Min Mat Peak Influence 352 | 10 161 12 352 Initial 9 | . 6 9 4 Average 65 | 4 71 8 96 Maximum Alert Level 1 | . . . 1 Low Security (%) 95 | 100 100 100 85 Level 1 4 | . . . 14 Level 2 . | . . . . Level 3 . | . . . . Level 4 . | . . . . Level 5 . | . . . . High Security . | . . . . Max Security . | . . . . Squads Dispatched 1 | . . . 1 Investigation . | . . . . Extermination . | . . . . Reinforcement 1 | . . . 1 Assault . | . . . . Garrison . | . . . . Intercept . | . . . . Searches Triggered . | . . . . Construction Impeded . | . . . . Haulers Reinforced . | . . . . Active Scanning Responses . | . . . . Cargo Convoy Interrupts . | . . . . Stealth | -11 -10 -10 -9 --------- Run | Jun Mat Min Mat Distress Signals 2 | . 1 . 1 Communications Jammed . | . . . . Distress Signals . | . . . . Times Spotted 44 | . 23 . 21 Peak Tracking Total 5 | . 4 . 5 Tactical Retreats 8 | . 7 . 1 Traps | -11 -10 -10 -9 ------- Run | Jun Mat Min Mat Traps Triggered . | . . . . Indirectly . | . . . . Trap Hack Attempts . | . . . . Triggered . | . . . . Disarmed . | . . . . Reprogrammed . | . . . . Reused . | . . . . Traps Extracted . | . . . . Installed . | . . . . Triggered . | . . . . Machines | -11 -10 -10 -9 ---------- Run | Jun Mat Min Mat Machines Disabled . | . . . . Max in Single Turn . | . . . . Machines Repaired . | . . . . Machines Sabotaged . | . . . . Overloaded Fab Kills . | . . . . Hacking | -11 -10 -10 -9 --------- Run | Jun Mat Min Mat Machines Accessed 16 | . 10 1 5 Terminals 13 | . 8 1 4 Fabricators . | . . . . Repair Stations . | . . . . Recycling Units 3 | . 2 . 1 Scanalyzers . | . . . . Garrison Access . | . . . . Total Hacks 58 | . 35 5 18 Successful 34 | . 21 3 10 Failed 23 | . 13 2 8 Catastrophic 1 | . . 1 . Database Lockouts 1 | . 1 . . Manual 40 | . 24 5 11 Terminals 52 | . 31 5 16 Fabricators . | . . . . Repair Stations . | . . . . Recycling Units 6 | . 4 . 2 Scanalyzers . | . . . . Garrison Access . | . . . . Terminal Hacks 18 | . 13 3 2 Robot Schematic 2 | . . 2 . Robot Analysis 7 | . 6 1 . Prototype ID Bank 2 | . 2 . . Branch Access Points 2 | . 1 . 1 Terminal Index 1 | . 1 . . Locate Traps 2 | . 2 . . Dispatch Records 1 | . 1 . . Hauler Manifests 1 | . . . 1 Fabricator Hacks . | . . . . Repair Station Hacks . | . . . . Recycling Unit Hacks 3 | . 2 . 1 Retrieve Components 3 | . 2 . 1 Scanalyzer . | . . . . Garrison Access Hacks . | . . . . Unauthorized Hacks 13 | . 6 . 7 Terminals 11 | . 5 . 6 Track 2 | . 1 . 1 Assimilate 3 | . 1 . 2 Botnet 4 | . 2 . 2 Operators 2 | . 1 . 1 Fabricators . | . . . . Repair Stations . | . . . . Recycling Units 2 | . 1 . 1 Reject 2 | . 1 . 1 Scanalyzers . | . . . . Garrison Access . | . . . . Data Cores Recovered . | . . . . Used . | . . . . Hacking Detections 16 | . 10 1 5 Full Trace Events . | . . . . Feedback Events . | . . . . Feedback Blocked . | . . . . Robot Schematics Acquired 2 | . . 2 . Robots Built . | . . . . Authchips . | . . . . Time . | . . . . Total Robot Build Rating . | . . . . Part Schematics Acquired . | . . . . Parts Built . | . . . . Authchips . | . . . . Time . | . . . . Total Part Build Rating . | . . . . Parts Repaired . | . . . . Time . | . . . . Parts Recycled . | . . . . Recycled Matter . | . . . . Retrieved Matter . | . . . . Retrieved Components 14 | . 13 . 1 Parts Scanalyzed . | . . . . Part Schematics Acquired . | . . . . Parts Damaged . | . . . . Bothacking | -11 -10 -10 -9 ------------ Run | Jun Mat Min Mat Used RIF Installer . | . . . . Robots Hacked . | . . . . Non-combat . | . . . . Combat . | . . . . Robot Hacks Applied . | . . . . Relay Couplers Released . | . . . . Fabnet Peak Effective % . | . . . . Robots Rewired . | . . . . Allies Hacked . | . . . . Hacks Repelled . | . . . . Allies | -11 -10 -10 -9 -------- Run | Jun Mat Min Mat Total Allies 2 | . 1 . 1 Largest Group 1 | . 1 1 1 Highest-Rated Group 10 | . 10 10 10 Highest-Rated Ally 10 | . 10 10 10 Total Orders 6 | . . . 6 STAY 3 | . . . 3 FOLLOW 3 | . . . 3 Ally Attacks . | . . . . Total Damage . | . . . . Kills . | . . . . Allies Corrupted . | . . . . Allies Melted . | . . . . Intel | -11 -10 -10 -9 ------- Run | Jun Mat Min Mat Robot Analysis Total 7 | . 6 1 . Derelict Logs Recovered 2 | . . 2 . Drone Launches . | . . . . Drone Recoveries . | . . . . Exploration | -11 -10 -10 -9 ------------- Run | Jun Mat Min Mat Turns Passed 2331 | 122 1004 416 789 Spaces Moved 1757 | 48 826 392 491 Core 3 | 3 . . . Treads . | . . . . Legs 33 | 33 . . . Wheels 1721 | 12 826 392 491 Hover . | . . . . Flight . | . . . . Fastest Speed 50 | 50 80 95 95 Average Speed 94 | 108 93 95 95 Slowest Speed 125 | 120 95 95 125 Overloaded Moves . | . . . . Propulsion Burnouts . | . . . . Robots Hopped . | . . . . Cave-ins Triggered . | . . . . Exploration Rate (%) 60 | 4 98 93 48 Regions Visited 3 Branch Regions 1 Pre-discovered Areas 1 | . . 1 . Known Exits Taken 1 | . 1 . . Unknown Exits Taken 2 | 1 . 1 . Scrap Searched 1 | . . 1 . Spaces Dug 6 | . 1 . 5 Terrain Destroyed 6 | . 1 . 5 Melee . | . . . . Projectile 6 | . 1 . 5 AOE . | . . . . Terrain Rammed . | . . . . Walls Destroyed . | . . . . Machines Disabled . | . . . . Actions | -11 -10 -10 -9 --------- Run | Jun Mat Min Mat Total 2250 | 98 1001 436 715 Wait 330 | 23 124 42 141 Move 1754 | 47 825 391 491 Hop . | . . . . Pick Up 32 | 7 11 2 12 Fast Attach 11 | 9 . . 2 Attach 9 | . 2 . 7 Detach 2 | 1 . . 1 Swap 13 | . 6 . 7 Drop 14 | 2 5 1 6 Fire 85 | 9 28 . 48 Melee . | . . . . Ram . | . . . . Kick . | . . . . Crush . | . . . . Escape Stasis . | . . . . Rewire . | . . . . Trap . | . . . . Miscellaneous . | . . . . Route ------- -11/Junkyard -10/Materials (discovered 4 exits: *Mat x3 / *Min) -10/Mines (discovered 3 exits: *Mat x2 / [*Exi]) -9/Materials (discovered 3 exits: [*Mat] / *Min x2) History --------- Turn | Location | Event 7 | -11/Junkyard | Discovered new exit (range 15) 123 | -11/Junkyard | Entered Materials 214 | -10/Materials | Discovered new exit (range 16) 315 | -10/Materials | Build established: Mutant 392 | -10/Materials | Discovered new exit (range 9) 678 | -10/Materials | Discovered new exit (range 15) 785 | -10/Materials | Discovered new exit (range 15) 875 | -10/Materials | Central database locked down 914 | -10/Materials | Identified exit to Mines 1127 | -10/Materials | Entered Mines 1127 | -10/Mines | Accompanied by 1 ally 1137 | -10/Mines | Learned location of Mines (-9) 1335 | -10/Mines | Discovered new exit (range 12) 1446 | -10/Mines | Learned location of 1 exit from Materials 1517 | -10/Mines | Deemed a non-threat by the Exiles lab entrance 1517 | -10/Mines | Discovered new exit (range 5) 1534 | -10/Mines | Discovered new exit (range 7) 1543 | -10/Mines | Entered Materials 1543 | -9/Materials | Accompanied by 1 ally 1543 | -9/Materials | Evolved 2 slots: Utility x2 1544 | -9/Materials | Identified exit to Mines 2208 | -9/Materials | Discovered new exit (range 16) 2332 | -9/Materials | Self-destructed Last Messages --------------- 02238_ Acquired Lgt. Armor Plating. 02240_ Dropped Core Shielding. 02243_ Acquired Imp. Light Cannon. 02244_ Dropped Assault Rifle. 02245_ Dropped Lgt. Cannon. 02246_ Acquired Imp. Light Cannon. 02249_ Dropped Lgt. Armor Plating. 02252_ Acquired Imp. Light Cannon. 02256_ Acquired 12 matter. 02261_ Technician 2a reveals location of Alarm Trap. 02286_ S-10 Pest destroyed. 02308_ Switching to secondary target: S-10 Pest. 02308_ S-10 Pest destroyed. 02309_ Wheel destroyed. 02314_ Lgt. Ion Engine melted. 02314_ S-10 Pest destroyed. 02324_ Wheel destroyed. 02324_ Critical hit (Burn: +37). 02324_ Lgt. Ion Engine destroyed. 02329_ Y-45 Defender destroyed. Map ----- +----------------------------------------------------+ | ????????????????????????????? | | ????????????????????????????? | | ????????????????????????????? | | ????????????????????????????? | | ????????????????????????????? | | ????????????????????????????? | | ????????????????????????????? | | ????????????????????????????? | | ????????????????????????????? | | ??????????????????????????? | | ???? ?????????????????????? | | ???? ??????????????????????? | | ???? ???????????????????????? | | ????!???????????????????????? | | ????>???????????????????????? | | ????%???????????????????????? | | ???? ???????????????????????? | | ???# #??????????????????????? | | ???# #??????????????????????? | | ???# #????????????????# ##### | | ???# +????????????????+ | | ???# #???????????????????# | | ???# #???????????????????# | | ???# +???????????????????# | | ???# #??????############## | | ???#@######## # | | ???#%=%*%[ ## # | | ???####### ## # """" | | ?????????# ## # """" | | ?????????#m## "T" # """" | | ?????????#=## # | | ?????????#%#####+### | | ?????????#=#### ## | | ?????????#%![ [T #####+# | | ?????????#[% ## s #####??? | | ?????????# ######??????? | | ?????????# #??????????? | | ?????????# #??????????? | | ?????????# #####?????? | | ?????????# #?????? | | ########## #?????# | | # ! # #?????# | | # ][ # #?????# | | # # #?????###### | | # =# #??????????? | | # !+% #??????????? | | # """ # ##+##??????????? | | # """ # #^ ??????????? | | # """ # # #????????? | | # # < # #????????? | +----------------------------------------------------+ Best States ------------- Heat Dissipation 42 Energy Generation 10 Energy Capacity 125 Matter Stores 300 Matter Capacity 300 Sight Range 16 Terrain Scan Range 16 Terrain Scan Density 85 Armor Coverage 150 Core Shielding 20 Evasion (%) 55 Targeting Accuracy 5 Item Schematics ----------------- None Robot Schematics ------------------ O-16 Technician | -10/Mines | Hacked W-16 Scout | -10/Mines | Hacked Fabricated ------------ Nothing Alien Tech Used ----------------- None Achievements -------------- None Challenges ------------ None Game ------ Seed BackupAnalysisStick Manual? 0 Play Time 00:19:43 Cumulative 557.3 hours Start 2023.03.10 @ 17:00:18 End 2023.03.10 @ 17:23:02 Sessions 1 Manual Loads 0 Difficulty Rogue Special Mode None Game No. 396 Rogue 396 Adventurer 0 Explorer 0 Win Type - Total 1 Types 1/0/0/0/0/0/0/0/0 Lore% 70 Gallery% 78 Achievement% 58 Wizard Run 0 Options --------- ASCII 0 Keyboard 0 Movement Mouse Keybinds 0 Fullscreen 1 Font 16/SmallcapsGlow Map View 75x55 Tactical HUD 1 Map Filters NONE Filters NONE Steam 1 RUN: 06fa62ea-8c02-456a-be74-e5a87da0cea1